[Event "39th Citta Arco Open 2017"]
[Site "Arco"]
[Date "2017.10.09"]
[Round "3.5"]
[White "Lezzerini, Marco"]
[Black "Gaprindashvili, Valeriane"]
[Result "0-1"]
[ECO "E15"]
[WhiteElo "2142"]
[BlackElo "2352"]
[Annotator "NA"]
[PlyCount "78"]
[EventDate "2017.??.??"]
[EventType "swiss"]
[EventCountry "ITA"]
[SourceTitle "playchess.com"]
[Source "ChessBase"]
[SourceQuality "1"]
[TimeControl "40/5400+30:1800+30"]

1. d4 {[%emt 0:00:30]} Nf6 {[%emt 0:02:00]} 2. c4 {[%emt 0:00:00]} b6 {[%emt 0:00:30]} 3. Nf3 {[%emt 0:04:00]} e6 {[%emt 0:00:30]} 4. g3 {[%emt 0:00:30]} Ba6 {[%emt 0:00:30]} 5. Qc2 {[%emt 0:04:30]} Bb7 {[%emt 0:01:30]} 6. Bg2 {[%emt 0:04:30] LiveBook: 532 Partien} c5 {[%emt 0:00:30]} 7. O-O {[%emt 0:03:30]} cxd4 {[%emt 0:01:30]} 8. Nxd4 {[%emt 0:00:30]} Bxg2 {[%emt 0:00:30]} 9. Kxg2 {[%emt 0:00:00]} Qc8 {[%emt 0:00:30]} 10. Nd2 {[%emt 0:11:00] E15: Queen's Indian: 4 g3 sidelines, 4 g3 Ba6 and 4 g3 Bb7 early deviations} Nc6 {[%emt 0:03:30]} 11. N2f3 $146 {[%emt 0:06:30]} ({Predecessor:} 11. Nxc6 Qxc6+ 12. Kg1 Rc8 13. Qd3 Be7 14. b3 d5 15. Bb2 dxc4 16. Nxc4 O-O 17. Rac1 Rfd8 18. Ne5 Qb7 19. Rxc8 Rxc8 20. Rc1 Rxc1+ 21. Bxc1 h6 22. Bb2 b5 23. a4 {½-½ (23) Paval,G (2229)-Filip,L (2490) Sarata Monteoru 2012}) 11... Nxd4 {[%emt 0:01:30]} 12. Nxd4 {[%emt 0:00:00]} Bc5 {[%emt 0:00:30]} 13. Nb3 {[%emt 0:05:00]} Qc6+ {[%emt 0:07:30]} 14. Kg1 {[%emt 0:00:30]} Rc8 {[%emt 0:08:30]} 15. Qd3 {[%emt 0:07:30]} O-O {[%emt 0:11:30]} 16. Bf4 {[%emt 0:07:30]} d5 {[%emt 0:04:30]} 17. cxd5 {[%emt 0:00:30]} Nxd5 {[%emt 0:02:30]} 18. Bd2 {[%emt 0:05:30]} Be7 {[%emt 0:06:30]} 19. Nd4 {[%emt 0:01:30]} Qc4 {[%emt 0:01:30]} 20. Qxc4 {[%emt 0:03:30]} Rxc4 {[%emt 0:00:30]} 21. e3 {[%emt 0:00:30]} Bf6 {[%emt 0:02:30]} 22. Rfc1 {[%emt 0:01:30]} Rxc1+ {[%emt 0:05:30]} 23. Rxc1 {[%emt 0:00:30]} Bxd4 {[%emt 0:00:00]} 24. exd4 {[%emt 0:00:00]} f6 {[%emt 0:01:00]} 25. Kf1 {[%emt 0:02:00]} Kf7 {[%emt 0:03:30]} 26. Ke2 {[%emt 0:01:30]} g5 {[%emt 0:00:30]} 27. h3 {[%emt 0:02:30]} h5 {[%emt 0:00:30]} 28. a4 {[%emt 0:08:30]} Ke7 {[%emt 0:02:30]} 29. Kd3 {[%emt 0:00:46]} Kd7 {[%emt 0:01:30]} 30. Rc2 {[%emt 0:01:00]} h4 {[%emt 0:05:30]} 31. gxh4 {[%emt 0:06:20]} gxh4 {[%emt 0:00:30]} 32. f3 {[%emt 0:01:36]} Rg8 {[%emt 0:02:30]} 33. Be1 {[%emt 0:00:07]} Rg1 {[%emt 0:01:30]} 34. Ke2 {[%emt 0:04:29]} Rg2+ {[%emt 0:12:12]} 35. Kd3 {[%emt 0:00:09]} Nf4+ {[%emt 0:00:04]} 36. Kc3 {[%emt 0:00:06]} Rg3 {[%emt 0:00:03]} 37. Rh2 {[%emt 0:07:43]} Rxf3+ $19 {[%emt 0:00:55]} 38. Kc2 {[%emt 0:00:25]} Rg3 {[%emt 0:05:13]} 39. Rh1 {[%emt 0:01:51]} Ne2 {[%emt 0:00:00]} 0-1

[Event "39th Citta Arco Open 2017"]
[Site "Arco"]
[Date "2017.10.09"]
[Round "3.7"]
[White "Panjkovic, Aleksandar"]
[Black "Luciani, Carlo"]
[Result "1-0"]
[ECO "A24"]
[WhiteElo "2130"]
[BlackElo "2261"]
[Annotator "ChessBase"]
[PlyCount "89"]
[EventDate "2017.??.??"]
[EventType "swiss"]
[EventCountry "ITA"]
[SourceTitle "playchess.com"]
[Source "ChessBase"]
[SourceQuality "1"]
[TimeControl "40/5400+30:1800+30"]

1. c4 {[%emt 0:01:30]} Nf6 {[%emt 0:01:00]} 2. g3 {[%emt 0:00:30]} g6 {[%emt 0:00:00]} 3. Bg2 {[%emt 0:00:30]} Bg7 {[%emt 0:00:00]} 4. Nc3 {[%emt 0:00:30]} d6 {[%emt 0:00:30]} 5. e4 {[%emt 0:00:30]} O-O {[%emt 0:01:30]} 6. Nge2 {[%emt 0:00:30]} e5 {[%emt 0:00:00]} 7. O-O {[%emt 0:00:30]} Be6 {[%emt 0:01:00]} 8. d3 {[%emt 0:00:30]} Qd7 {[%emt 0:00:30]} 9. Nd5 {[%emt 0:14:30]} Ne8 {[%emt 0:12:30]} 10. Rb1 {[%emt 0:08:30]} c6 {[%emt 0:05:30]} 11. Ne3 {[%emt 0:03:30]} Bh3 {[%emt 0:02:30]} 12. b4 {[%emt 0:06:30]} Bxg2 {[%emt 0:00:30]} 13. Kxg2 {[%emt 0:04:30]} f5 {[%emt 0:03:30]} 14. exf5 {[%emt 0:05:30]} gxf5 {[%emt 0:00:30]} 15. f4 {[%emt 0:00:00]} Na6 {[%emt 0:06:30]} 16. Qb3 {[%emt 0:07:00]} Kh8 {[%emt 0:01:30]} 17. Bb2 {[%emt 0:01:30]} c5 {[%emt 0:02:30]} 18. a3 {[%emt 0:01:30]} Nec7 {[%emt 0:07:30]} 19. b5 {[%emt 0:04:30]} Nb8 {[%emt 0:00:30]} 20. Nc3 {[%emt 0:07:30]} Ne6 {[%emt 0:04:30]} 21. Ne2 {[%emt 0:07:30]} Nd4 {[%emt 0:03:30]} 22. Bxd4 {[%emt 0:01:30]} cxd4 {[%emt 0:01:30]} 23. Nd5 {[%emt 0:00:30]} b6 {[%emt 0:01:30]} 24. Ng1 {[%emt 0:02:31]} Qb7 {[%emt 0:01:30]} 25. Qb4 {[%emt 0:01:37]} Nd7 {[%emt 0:04:30]} 26. Qxd6 {[%emt 0:01:21]} e4 {[%emt 0:00:30]} 27. Qc6 {[%emt 0:03:26]} Rab8 {[%emt 0:01:30]} 28. Nh3 {[%emt 0:01:45]} Nc5 {[%emt 0:00:30]} 29. dxe4 {[%emt 0:01:13]} fxe4 {[%emt 0:00:30]} 30. f5 {[%emt 0:00:36]} Rfc8 {[%emt 0:03:30]} 31. Qxb7 {[%emt 0:02:30]} Rxb7 {[%emt 0:00:30]} 32. f6 {[%emt 0:00:26]} Bf8 {[%emt 0:00:30]} 33. Rf4 {[%emt 0:06:54]} d3 {[%emt 0:10:30]} 34. Rh4 {[%emt 0:01:56]} Rd8 {[%emt 0:01:30]} 35. Ng5 {[%emt 0:00:52]} Rxd5 {[%emt 0:00:30]} 36. cxd5 {[%emt 0:00:11]} e3 {[%emt 0:00:30]} 37. Ne6 {[%emt 0:02:09]} Rf7 {[%emt 0:01:30]} 38. Rd4 {[%emt 0:00:56]} d2 {[%emt 0:01:30]} 39. Kf3 {[%emt 0:00:34]} Bh6 {[%emt 0:01:30]} 40. Nf4 {[%emt 0:00:23]} Bxf4 {[%emt 0:05:30]} 41. gxf4 {[%emt 0:02:40]} Rxf6 {[%emt 0:01:30]} 42. Kxe3 {[%emt 0:00:00]} Rh6 {[%emt 0:00:30]} 43. d6 {[%emt 0:07:00]} Rh3+ {[%emt 0:06:30]} 44. Kxd2 {[%emt 0:01:30]} Rxh2+ {[%emt 0:00:30]} 45. Ke3 {[%emt 0:01:30]} 1-0

[Event "39th Citta Arco Open 2017"]
[Site "Arco"]
[Date "2017.10.09"]
[Round "3.11"]
[White "Vezzosi, Paolo"]
[Black "Tocco, Paolo"]
[Result "1-0"]
[ECO "A10"]
[WhiteElo "2299"]
[BlackElo "2097"]
[Annotator "NA"]
[PlyCount "79"]
[EventDate "2017.??.??"]
[EventType "swiss"]
[EventCountry "ITA"]
[SourceTitle "playchess.com"]
[Source "ChessBase"]
[SourceQuality "1"]
[TimeControl "40/5400+30:1800+30"]

1. e4 {[%emt 0:00:30]} b6 {[%emt 0:02:00]} 2. c4 {[%emt 0:00:00]} Bb7 {[%emt 0:00:30]} 3. Nc3 {[%emt 0:00:00]} e6 {[%emt 0:00:00]} 4. Nf3 {[%emt 0:01:30]} Bb4 {[%emt 0:03:00]} 5. Bd3 {[%emt 0:00:30] LiveBook: 174 Partien} d6 {[%emt 0:04:30] A10: English Opening: Unusual Replies for Black} (5... Nf6 6. Qe2 d6 7. O-O O-O 8. Bc2 c5 9. Nd1 b5 10. a3 Ba5 11. cxb5 a6 12. bxa6 Bxa6 13. d3 Nc6 {0-1 (33) Rakhmanov,A (2662)-Dubov,D (2648) Sochi 2016}) 6. Qa4+ {[%emt 0:10:30]} Nc6 {[%emt 0:00:30]} 7. Nd5 {[%emt 0:01:30]} a5 {[%emt 0:06:30]} 8. O-O {[%emt 0:03:30]} Qd7 $146 {[%emt 0:11:30]} ({Predecessor:} 8... Nge7 9. a3 Bc5 10. Nc3 O-O 11. Qd1 Nd4 12. Nxd4 Bxd4 13. Ne2 {1-0 (28) Taborsky,R (2105)-Forman,S Prague 1995}) 9. Nxb4 {[%emt 0:09:30]} axb4 {[%emt 0:02:30]} 10. Qd1 {[%emt 0:00:30]} e5 {[%emt 0:02:30]} 11. Bc2 {[%emt 0:01:30]} Nf6 {[%emt 0:12:30]} 12. d4 {[%emt 0:02:30]} exd4 {[%emt 0:01:30]} 13. Nxd4 {[%emt 0:00:30]} Nxd4 {[%emt 0:00:30]} 14. Qxd4 {[%emt 0:00:30]} O-O {[%emt 0:07:30]} 15. f3 {[%emt 0:01:30]} Qe6 {[%emt 0:01:30]} 16. Bf4 {[%emt 0:02:30]} Nd7 {[%emt 0:03:30]} 17. Rfc1 {[%emt 0:07:30]} Ne5 {[%emt 0:06:30]} 18. Bb3 {[%emt 0:03:30]} Qf6 {[%emt 0:05:30]} 19. Qd2 {[%emt 0:03:30]} Nc6 {[%emt 0:04:30]} 20. Be3 {[%emt 0:02:30]} Rfe8 {[%emt 0:01:30]} 21. Rc2 {[%emt 0:04:30]} Ra5 {[%emt 0:02:30]} 22. Rd1 {[%emt 0:01:30]} h5 {[%emt 0:01:11]} 23. Qe1 {[%emt 0:01:30]} h4 {[%emt 0:01:19]} 24. h3 {[%emt 0:01:30]} Ne5 {[%emt 0:04:27]} 25. Rf2 {[%emt 0:00:30]} c5 {[%emt 0:01:35]} 26. Qd2 {[%emt 0:01:30]} Ba6 {[%emt 0:02:32]} 27. Qd5 {[%emt 0:10:30]} Qe6 {[%emt 0:02:34]} 28. Rc2 {[%emt 0:02:30]} Qxd5 {[%emt 0:00:44]} 29. Rxd5 {[%emt 0:00:30]} Re6 {[%emt 0:00:12]} 30. Bf4 {[%emt 0:02:30]} f6 {[%emt 0:02:35]} 31. Bxe5 {[%emt 0:03:30]} dxe5 {[%emt 0:03:23]} 32. Rd7 {[%emt 0:00:30]} Kh7 {[%emt 0:01:56]} 33. Rcd2 {[%emt 0:01:30]} Kh6 {[%emt 0:01:13]} 34. Rc7 {[%emt 0:00:52]} g6 {[%emt 0:00:27]} 35. Kf2 {[%emt 0:00:33]} f5 {[%emt 0:01:14]} 36. exf5 {[%emt 0:05:55]} gxf5 {[%emt 0:00:01]} 37. Rd8 {[%emt 0:00:12]} Kg5 {[%emt 0:01:05]} 38. Ke3 {[%emt 0:02:39]} Rg6 $18 {[%emt 0:01:14]} 39. Rf8 {[%emt 0:03:51]} f4+ {[%emt 0:00:39]} 40. Ke4 {[%emt 0:00:00]} 1-0

[Event "39th Citta Arco Open 2017"]
[Site "Arco"]
[Date "2017.10.09"]
[Round "3.12"]
[White "Dittmar, Peter"]
[Black "Voelker, Sebastian"]
[Result "1-0"]
[ECO "B00"]
[WhiteElo "2266"]
[BlackElo "2018"]
[Annotator "NA"]
[PlyCount "33"]
[EventDate "2017.??.??"]
[EventType "swiss"]
[EventCountry "ITA"]
[SourceTitle "playchess.com"]
[Source "ChessBase"]
[SourceQuality "1"]
[TimeControl "40/5400+30:1800+30"]

1. e4 {[%emt 0:00:30]} Nc6 {[%emt 0:04:00]} 2. d4 {[%emt 0:03:30]} e5 {[%emt 0:00:30]} 3. dxe5 {[%emt 0:01:30]} Nxe5 {[%emt 0:00:30]} 4. f4 {[%emt 0:00:30]} Nc6 {[%emt 0:02:30]} 5. Nf3 {[%emt 0:00:30]} Bc5 {[%emt 0:09:30]} 6. Bc4 {[%emt 0:00:30]} Qe7 {[%emt 0:02:30]} 7. Nc3 {[%emt 0:04:30]} Nf6 {[%emt 0:02:30]} (7... d5 $14 8. Nxd5 (8. Qxd5 Be6 $17) (8. Bxd5 Nf6 $11) 8... Qxe4+ 9. Qe2 Qxe2+ 10. Kxe2 Bd6) 8. Qe2 {[%emt 0:02:30]} O-O {[%emt 0:04:30] [#]} 9. e5 $16 {[%emt 0:04:30]} Ne8 {[%emt 0:03:30]} 10. Nd5 {[%emt 0:03:30]} Qd8 {[%emt 0:01:30]} 11. f5 {[%emt 0:00:30]} Nd4 {[%emt 0:03:30]} 12. Nxd4 {[%emt 0:00:30]} Bxd4 {[%emt 0:00:00]} 13. f6 {[%emt 0:01:30]} c6 {[%emt 0:05:00]} 14. fxg7 {[%emt 0:09:30]} Nxg7 {[%emt 0:20:30]} 15. Nf6+ {[%emt 0:00:30]} Kh8 {[%emt 0:00:30]} 16. Qe4 {[%emt 0:00:30]} Qa5+ {[%emt 0:00:30]} 17. Kf1 {[%emt 0:00:00]} 1-0

[Event "39th Citta Arco Open 2017"]
[Site "Arco"]
[Date "2017.10.09"]
[Round "3.16"]
[White "Astengo, Corrado"]
[Black "Cluyts, Marc"]
[Result "1/2-1/2"]
[ECO "C56"]
[WhiteElo "2125"]
[BlackElo "1968"]
[Annotator "NA"]
[PlyCount "94"]
[EventDate "2017.??.??"]
[EventType "swiss"]
[EventCountry "ITA"]
[SourceTitle "playchess.com"]
[Source "ChessBase"]
[SourceQuality "1"]
[TimeControl "40/5400+30:1800+30"]

1. e4 {[%emt 0:00:30]} e5 {[%emt 0:01:00]} 2. Nf3 {[%emt 0:00:00]} Nc6 {[%emt 0:00:00]} 3. d4 {[%emt 0:00:00]} exd4 {[%emt 0:00:00]} 4. Bc4 {[%emt 0:00:30]} Nf6 {[%emt 0:00:30]} 5. e5 {[%emt 0:00:00]} Ne4 {[%emt 0:01:30]} 6. O-O {[%emt 0:00:00]} d5 {[%emt 0:02:30]} 7. Bb5 {[%emt 0:01:30]} Bd7 {[%emt 0:17:30]} 8. Bxc6 {[%emt 0:00:30]} bxc6 {[%emt 0:00:30]} 9. Nxd4 {[%emt 0:00:00]} Bc5 {[%emt 0:07:30]} 10. Be3 {[%emt 0:01:00]} O-O {[%emt 0:00:30]} 11. f3 $11 {[%emt 0:00:30] LiveBook: 37 Partien} Ng5 {[%emt 0:01:30]} 12. f4 {[%emt 0:00:00]} Ne4 {[%emt 0:04:30]} 13. Nd2 {[%emt 0:00:00]} Nxd2 {[%emt 0:01:30]} 14. Qxd2 {[%emt 0:00:30]} Bb6 {[%emt 0:06:30]} 15. Nb3 {[%emt 0:02:30]} Qe7 {[%emt 0:05:30]} 16. a4 {[%emt 0:05:30]} a5 {[%emt 0:13:30]} 17. Qf2 {[%emt 0:02:30]} Rab8 {[%emt 0:06:30]} 18. Bc5 {[%emt 0:03:30]} Bxc5 {[%emt 0:00:30]} 19. Qxc5 {[%emt 0:00:30]} Qxc5+ {[%emt 0:01:30]} 20. Nxc5 {[%emt 0:00:30]} Bf5 {[%emt 0:03:30]} 21. b3 {[%emt 0:00:30]} Rfd8 {[%emt 0:04:30]} 22. Rf2 {[%emt 0:01:30]} d4 {[%emt 0:00:30]} 23. Rd1 {[%emt 0:02:30]} Rd5 {[%emt 0:00:32]} 24. Nd3 {[%emt 0:02:30]} Bxd3 {[%emt 0:07:16]} 25. Rxd3 {[%emt 0:01:30]} h5 {[%emt 0:00:41]} 26. Rfd2 {[%emt 0:00:30]} c5 {[%emt 0:03:36]} 27. Kf2 {[%emt 0:03:30]} g6 {[%emt 0:01:14]} 28. Kf3 {[%emt 0:00:30]} c6 {[%emt 0:01:27]} 29. Ke4 {[%emt 0:01:30]} Re8 {[%emt 0:00:35]} 30. Rg3 {[%emt 0:01:30]} h4 {[%emt 0:03:13]} 31. Rg5 {[%emt 0:03:30]} Kg7 {[%emt 0:00:01]} 32. Kd3 {[%emt 0:00:00]} f6 {[%emt 0:00:04]} 33. exf6+ {[%emt 0:00:00]} Kxf6 {[%emt 0:00:01]} 34. Rf2 {[%emt 0:07:30]} Re3+ {[%emt 0:00:25]} 35. Kd2 {[%emt 0:00:30]} Rxg5 {[%emt 0:02:32]} 36. fxg5+ {[%emt 0:00:30]} Kxg5 {[%emt 0:00:01]} 37. Rf7 {[%emt 0:00:30]} Kg4 {[%emt 0:01:19]} 38. Rf6 {[%emt 0:00:30]} g5 {[%emt 0:00:26]} 39. Rxc6 {[%emt 0:00:00]} Rc3 {[%emt 0:01:11]} 40. Ra6 {[%emt 0:05:00]} h3 {[%emt 0:30:16]} 41. gxh3+ {[%emt 0:02:30]} Kxh3 {[%emt 0:00:00]} 42. Rh6+ {[%emt 0:03:30]} Kg4 {[%emt 0:00:00]} 43. Rc6 {[%emt 0:03:30]} Kh3 {[%emt 0:00:00]} 44. Rh6+ {[%emt 0:00:30]} Kg4 {[%emt 0:00:00]} 45. Rc6 {[%emt 0:01:30]} Kh3 {[%emt 0:00:00]} 46. Rh6+ {[%emt 0:19:30]} Kg4 {[%emt 0:00:00]} 47. Rc6 {[%emt 0:00:30]} Kh3 {[%emt 0:00:00]} 1/2-1/2

[Event "39th Citta Arco Open 2017"]
[Site "Arco"]
[Date "2017.10.09"]
[Round "3.17"]
[White "Tonina, Filippo"]
[Black "Pedersen, Henrik Bolding"]
[Result "1/2-1/2"]
[ECO "D35"]
[WhiteElo "2021"]
[BlackElo "2125"]
[Annotator "NA"]
[PlyCount "30"]
[EventDate "2017.??.??"]
[EventType "swiss"]
[EventCountry "ITA"]
[SourceTitle "playchess.com"]
[Source "ChessBase"]
[SourceQuality "1"]
[TimeControl "40/5400+30:1800+30"]

1. c4 {[%emt 0:00:30]} e6 {[%emt 0:01:00]} 2. Nc3 {[%emt 0:00:30]} d5 {[%emt 0:00:30]} 3. d4 {[%emt 0:00:30]} Nf6 {[%emt 0:00:30]} 4. cxd5 {[%emt 0:00:30]} exd5 {[%emt 0:00:00]} 5. Bg5 {[%emt 0:00:00]} c6 {[%emt 0:00:00]} 6. e3 {[%emt 0:00:00]} Qb6 {[%emt 0:05:30]} 7. Qc2 {[%emt 0:03:30]} Ne4 {[%emt 0:02:30]} 8. Bf4 {[%emt 0:07:30]} Bf5 {[%emt 0:12:30]} 9. Bd3 {[%emt 0:06:30]} Na6 {[%emt 0:05:30]} 10. a3 {[%emt 0:01:30]} Qa5 {[%emt 0:22:30]} 11. Rc1 {[%emt 0:06:30]} Nxc3 {[%emt 0:06:30]} 12. Qxc3 {[%emt 0:01:30]} Qxc3+ {[%emt 0:01:30]} 13. Rxc3 {[%emt 0:01:30]} Bxd3 {[%emt 0:00:30]} 14. Rxd3 {[%emt 0:00:00]} Kd7 {[%emt 0:00:30]} 15. Nf3 {[%emt 0:08:00]} f6 {[%emt 0:00:30]} 1/2-1/2